[Event "Titled Tuesday Blitz June 14 Late 2022"]
[White "Ansh M Shah"]
[Black "Kosteniuk, Alexandra"]
[WhiteFideId "25033379"]
[BlackFideId "4128125"]
[WhiteElo "1819"]
[BlackElo "2469"]
[Result "0-1"]
[Round "03"]
[TimeControl "180+1"]
[Date "2022.06.14"]
[WhiteClock "0:00:02"]
[BlackClock "0:00:44"]

1. d4 {[%clk 0:03:00]}  f5 {[%clk 0:02:57]} 2. c4 {[%clk 0:02:55]}  Nf6 {[%clk 0:02:57]} 3. Nc3 {[%clk 0:02:56]}  g6 {[%clk 0:02:57]} 4. g3 {[%clk 0:02:56]}  Bg7 {[%clk 0:02:58]} 5. Bg2 {[%clk 0:02:57]}  O-O {[%clk 0:02:58]} 6. Nf3 {[%clk 0:02:58]}  d6 {[%clk 0:02:59]} 7. O-O {[%clk 0:02:58]}  Na6 {[%clk 0:02:57]} 8. d5 {[%clk 0:02:58]}  Nc5 {[%clk 0:02:56]} 9. Nd4 {[%clk 0:02:57]}  a5 {[%clk 0:02:45]} 10. b3 {[%clk 0:02:53]}  Qe8 {[%clk 0:02:44]} 11. Bb2 {[%clk 0:02:52]}  Bd7 {[%clk 0:02:40]} 12. a3 {[%clk 0:02:49]}  c6 {[%clk 0:02:35]} 13. b4 {[%clk 0:02:36]}  Nce4 {[%clk 0:02:34]} 14. Nxe4 {[%clk 0:01:56]}  Nxe4 {[%clk 0:02:30]} 15. Qc2 {[%clk 0:01:42]}  Qf7 {[%clk 0:02:08]} 16. dxc6 {[%clk 0:01:14]}  bxc6 {[%clk 0:02:05]} 17. f3 {[%clk 0:00:27]}  Nf6 {[%clk 0:01:57]} 18. e4 {[%clk 0:00:23]}  f4 {[%clk 0:01:31]} 19. Ne2 {[%clk 0:00:19]}  fxg3 {[%clk 0:01:24]} 20. hxg3 {[%clk 0:00:19]}  Be6 {[%clk 0:01:22]} 21. Rac1 {[%clk 0:00:16]}  axb4 {[%clk 0:01:21]} 22. axb4 {[%clk 0:00:16]}  Rfb8 {[%clk 0:01:19]} 23. Qb3 {[%clk 0:00:10]}  Nd7 {[%clk 0:01:03]} 24. Bxg7 {[%clk 0:00:08]}  Qxg7 {[%clk 0:01:04]} 25. Nf4 {[%clk 0:00:08]}  Bf7 {[%clk 0:01:04]} 26. Rfd1 {[%clk 0:00:04]}  Nc5 {[%clk 0:00:57]} 27. Qc3 {[%clk 0:00:03]}  Qxc3 {[%clk 0:00:56]} 28. Rxc3 {[%clk 0:00:04]}  Rxb4 {[%clk 0:00:56]} 29. Bh3 {[%clk 0:00:04]}  Rb2 {[%clk 0:00:52]} 30. e5 {[%clk 0:00:02]}  dxe5 {[%clk 0:00:48]} 31. Nd3 {[%clk 0:00:02]}  Nxd3 {[%clk 0:00:46]} 32. Rcxd3 {[%clk 0:00:02]}  Bxc4 {[%clk 0:00:44]} 0-1


[Site "https://www.chess.com"]

[Event "Titled Tuesday Blitz June 14 Late 2022"]
[White "Bas Mas, Jose Joaquin"]
[Black "Bolanos, Fernando"]
[WhiteFideId "22219064"]
[BlackFideId "3304094"]
[WhiteElo "2233"]
[BlackElo "2048"]
[Result "0-1"]
[Round "03"]
[TimeControl "180+1"]
[Date "2022.06.15"]
[WhiteClock "0:00:08"]
[BlackClock "0:00:10"]

1. e4 {[%clk 0:03:00]}  c5 {[%clk 0:02:58]} 2. Nc3 {[%clk 0:03:00]}  Nc6 {[%clk 0:02:59]} 3. Bb5 {[%clk 0:03:00]}  e5 {[%clk 0:02:57]} 4. Nf3 {[%clk 0:02:55]}  Nge7 {[%clk 0:02:56]} 5. d3 {[%clk 0:02:51]}  g6 {[%clk 0:02:54]} 6. a4 {[%clk 0:02:51]}  Bg7 {[%clk 0:02:55]} 7. O-O {[%clk 0:02:50]}  O-O {[%clk 0:02:55]} 8. Bc4 {[%clk 0:02:49]}  d6 {[%clk 0:02:53]} 9. h3 {[%clk 0:02:50]}  Nd4 {[%clk 0:02:50]} 10. Nd5 {[%clk 0:02:44]}  Nxd5 {[%clk 0:02:48]} 11. Bxd5 {[%clk 0:02:43]}  Rb8 {[%clk 0:02:44]} 12. c3 {[%clk 0:02:42]}  Nxf3+ {[%clk 0:02:41]} 13. Qxf3 {[%clk 0:02:43]}  Be6 {[%clk 0:02:34]} 14. Bxe6 {[%clk 0:02:29]}  fxe6 {[%clk 0:02:35]} 15. Qg4 {[%clk 0:02:29]}  Qd7 {[%clk 0:02:31]} 16. Be3 {[%clk 0:02:28]}  b5 {[%clk 0:02:17]} 17. axb5 {[%clk 0:02:25]}  Rxb5 {[%clk 0:02:18]} 18. Ra2 {[%clk 0:02:23]}  Rfb8 {[%clk 0:02:18]} 19. Qe2 {[%clk 0:02:22]}  Bf6 {[%clk 0:02:00]} 20. Rfa1 {[%clk 0:02:13]}  R8b7 {[%clk 0:02:01]} 21. Bc1 {[%clk 0:01:53]}  d5 {[%clk 0:01:41]} 22. exd5 {[%clk 0:01:53]}  exd5 {[%clk 0:01:41]} 23. Ra6 {[%clk 0:01:52]}  Bg7 {[%clk 0:01:39]} 24. Qg4 {[%clk 0:01:38]}  d4 {[%clk 0:00:26]} 25. Qxd7 {[%clk 0:00:34]}  Rxd7 {[%clk 0:00:27]} 26. c4 {[%clk 0:00:25]}  Rb3 {[%clk 0:00:27]} 27. R1a3 {[%clk 0:00:26]}  Rxa3 {[%clk 0:00:19]} 28. Rxa3 {[%clk 0:00:25]}  h5 {[%clk 0:00:18]} 29. f3 {[%clk 0:00:24]}  Kh7 {[%clk 0:00:18]} 30. Kf2 {[%clk 0:00:24]}  Bh6 {[%clk 0:00:17]} 31. Bxh6 {[%clk 0:00:21]}  Kxh6 {[%clk 0:00:18]} 32. Ra5 {[%clk 0:00:16]}  Rb7 {[%clk 0:00:17]} 33. Rxc5 {[%clk 0:00:16]}  Rxb2+ {[%clk 0:00:17]} 34. Kg3 {[%clk 0:00:15]}  Re2 {[%clk 0:00:16]} 35. Ra5 {[%clk 0:00:14]}  Re3 {[%clk 0:00:16]} 36. Ra3 {[%clk 0:00:14]}  Kg5 {[%clk 0:00:14]} 37. Kf2 {[%clk 0:00:13]}  Kf5 {[%clk 0:00:14]} 38. c5 {[%clk 0:00:12]}  Ke6 {[%clk 0:00:13]} 39. Rxa7 {[%clk 0:00:13]}  Rxd3 {[%clk 0:00:13]} 40. Ra6+ {[%clk 0:00:13]}  Kf5 {[%clk 0:00:14]} 41. c6 {[%clk 0:00:12]}  Rc3 {[%clk 0:00:14]} 42. Rb6 {[%clk 0:00:12]}  h4 {[%clk 0:00:14]} 43. Ke2 {[%clk 0:00:12]}  Kf4 {[%clk 0:00:13]} 44. Kd2 {[%clk 0:00:12]}  Kg3 {[%clk 0:00:13]} 45. c7 {[%clk 0:00:12]}  Kxg2 {[%clk 0:00:13]} 46. Rxg6+ {[%clk 0:00:12]}  Kxh3 {[%clk 0:00:13]} 47. Rg5 {[%clk 0:00:12]}  Rxc7 {[%clk 0:00:12]} 48. Rxe5 {[%clk 0:00:13]}  Rc3 {[%clk 0:00:12]} 49. Re4 {[%clk 0:00:12]}  Rxf3 {[%clk 0:00:12]} 50. Rxd4 {[%clk 0:00:12]}  Kg2 {[%clk 0:00:13]} 51. Rg4+ {[%clk 0:00:12]}  Kh3 {[%clk 0:00:13]} 52. Rg8 {[%clk 0:00:11]}  Rg3 {[%clk 0:00:10]} 53. Rh8 {[%clk 0:00:11]}  Rg7 {[%clk 0:00:08]} 54. Ke2 {[%clk 0:00:11]}  Rf7 {[%clk 0:00:09]} 55. Ke3 {[%clk 0:00:09]}  Kg3 {[%clk 0:00:09]} 56. Rg8+ {[%clk 0:00:09]}  Kh2 {[%clk 0:00:09]} 57. Rh8 {[%clk 0:00:09]}  h3 {[%clk 0:00:10]} 58. Ke2 {[%clk 0:00:09]}  Kg2 {[%clk 0:00:10]} 59. Rg8+ {[%clk 0:00:09]}  Kh2 {[%clk 0:00:11]} 60. Rh8 {[%clk 0:00:09]}  Rf4 {[%clk 0:00:11]} 61. Rg8 {[%clk 0:00:09]}  Rf6 {[%clk 0:00:09]} 62. Ke1 {[%clk 0:00:10]}  Rf3 {[%clk 0:00:09]} 63. Ke2 {[%clk 0:00:10]}  Rg3 {[%clk 0:00:09]} 64. Rh8 {[%clk 0:00:10]}  Kg2 {[%clk 0:00:09]} 65. Ra8 {[%clk 0:00:08]}  h2 {[%clk 0:00:09]} 66. Ra1 {[%clk 0:00:08]}  h1=Q {[%clk 0:00:10]} 0-1


[Site "https://www.chess.com"]

[Event "Titled Tuesday Blitz June 14 Late 2022"]
[White "Bayo Milagro, Alvaro"]
[Black "Petrova, Irina"]
[WhiteFideId "22275240"]
[BlackFideId "14124122"]
[WhiteElo "2270"]
[BlackElo "1993"]
[Result "1/2-1/2"]
[Round "03"]
[TimeControl "180+1"]
[Date "2022.06.15"]
[WhiteClock "0:00:05"]
[BlackClock "0:00:07"]

1. c4 {[%clk 0:03:00]}  d6 {[%clk 0:03:00]} 2. Nc3 {[%clk 0:02:59]}  e5 {[%clk 0:03:00]} 3. d4 {[%clk 0:02:59]}  exd4 {[%clk 0:02:59]} 4. Qxd4 {[%clk 0:03:00]}  Nc6 {[%clk 0:03:00]} 5. Qd2 {[%clk 0:03:01]}  Nf6 {[%clk 0:02:59]} 6. b3 {[%clk 0:03:01]}  a5 {[%clk 0:02:58]} 7. Bb2 {[%clk 0:03:00]}  a4 {[%clk 0:02:58]} 8. Rc1 {[%clk 0:02:58]}  axb3 {[%clk 0:02:55]} 9. axb3 {[%clk 0:02:59]}  Be7 {[%clk 0:02:53]} 10. e4 {[%clk 0:02:59]}  O-O {[%clk 0:02:53]} 11. Bd3 {[%clk 0:03:00]}  Nd7 {[%clk 0:02:50]} 12. Nge2 {[%clk 0:02:57]}  Bf6 {[%clk 0:02:50]} 13. Nd5 {[%clk 0:02:52]}  Bxb2 {[%clk 0:02:46]} 14. Qxb2 {[%clk 0:02:52]}  Nc5 {[%clk 0:02:46]} 15. Bc2 {[%clk 0:02:52]}  Ne5 {[%clk 0:02:38]} 16. Rd1 {[%clk 0:02:40]}  Bg4 {[%clk 0:02:16]} 17. f3 {[%clk 0:02:20]}  Qh4+ {[%clk 0:01:56]} 18. Ng3 {[%clk 0:02:13]}  Nxf3+ {[%clk 0:01:49]} 19. gxf3 {[%clk 0:02:13]}  Bxf3 {[%clk 0:01:50]} 20. O-O {[%clk 0:02:02]}  Bxd1 {[%clk 0:01:43]} 21. Rxd1 {[%clk 0:02:01]}  Qg4 {[%clk 0:01:20]} 22. Ne3 {[%clk 0:01:40]}  Qg5 {[%clk 0:01:20]} 23. Nf5 {[%clk 0:01:39]}  h5 {[%clk 0:01:06]} 24. h4 {[%clk 0:01:34]}  Qg4 {[%clk 0:01:03]} 25. Rf1 {[%clk 0:01:26]}  f6 {[%clk 0:01:00]} 26. Bd1 {[%clk 0:01:17]}  Qh3 {[%clk 0:00:55]} 27. Bxh5 {[%clk 0:01:04]}  Nd3 {[%clk 0:00:47]} 28. Qe2 {[%clk 0:00:57]}  Ne5 {[%clk 0:00:46]} 29. Bf3 {[%clk 0:00:39]}  g6 {[%clk 0:00:45]} 30. Bg2 {[%clk 0:00:23]}  Qg4 {[%clk 0:00:45]} 31. Qxg4 {[%clk 0:00:23]}  Nxg4 {[%clk 0:00:46]} 32. Ne7+ {[%clk 0:00:22]}  Kf7 {[%clk 0:00:46]} 33. Nd5 {[%clk 0:00:23]}  Ra2 {[%clk 0:00:43]} 34. Bh3 {[%clk 0:00:20]}  Ne5 {[%clk 0:00:38]} 35. Rxf6+ {[%clk 0:00:13]}  Kg7 {[%clk 0:00:38]} 36. Rxf8 {[%clk 0:00:13]}  Kxf8 {[%clk 0:00:39]} 37. Nxc7 {[%clk 0:00:14]}  Nf3+ {[%clk 0:00:38]} 38. Kf1 {[%clk 0:00:13]}  Nd2+ {[%clk 0:00:36]} 39. Ke1 {[%clk 0:00:13]}  Nxb3 {[%clk 0:00:35]} 40. Ne2 {[%clk 0:00:12]}  Nc5 {[%clk 0:00:34]} 41. Ne6+ {[%clk 0:00:11]}  Nxe6 {[%clk 0:00:33]} 42. Bxe6 {[%clk 0:00:12]}  Ke7 {[%clk 0:00:33]} 43. Bd5 {[%clk 0:00:12]}  b6 {[%clk 0:00:32]} 44. Kf2 {[%clk 0:00:12]}  Kf6 {[%clk 0:00:32]} 45. Kf3 {[%clk 0:00:12]}  Ke5 {[%clk 0:00:31]} 46. Nf4 {[%clk 0:00:11]}  Ra3+ {[%clk 0:00:31]} 47. Kg4 {[%clk 0:00:12]}  Ra5 {[%clk 0:00:29]} 48. Nxg6+ {[%clk 0:00:11]}  Kf6 {[%clk 0:00:29]} 49. Nf4 {[%clk 0:00:12]}  b5 {[%clk 0:00:29]} 50. cxb5 {[%clk 0:00:12]}  Rxb5 {[%clk 0:00:30]} 51. h5 {[%clk 0:00:12]}  Rb8 {[%clk 0:00:29]} 52. Ng6 {[%clk 0:00:10]}  Rb1 {[%clk 0:00:28]} 53. Nf4 {[%clk 0:00:10]}  Rg1+ {[%clk 0:00:28]} 54. Kf3 {[%clk 0:00:10]}  Rf1+ {[%clk 0:00:27]} 55. Ke3 {[%clk 0:00:10]}  Kg5 {[%clk 0:00:26]} 56. Ne2 {[%clk 0:00:07]}  Re1 {[%clk 0:00:24]} 57. Bf7 {[%clk 0:00:06]}  Kh6 {[%clk 0:00:20]} 58. Bg6 {[%clk 0:00:06]}  Rd1 {[%clk 0:00:19]} 59. Nc3 {[%clk 0:00:06]}  Rc1 {[%clk 0:00:18]} 60. Kd4 {[%clk 0:00:06]}  Rg1 {[%clk 0:00:16]} 61. Nb5 {[%clk 0:00:05]}  Rd1+ {[%clk 0:00:16]} 62. Kc4 {[%clk 0:00:05]}  Rc1+ {[%clk 0:00:15]} 63. Kb4 {[%clk 0:00:05]}  Rd1 {[%clk 0:00:14]} 64. Nc3 {[%clk 0:00:03]}  Rd4+ {[%clk 0:00:14]} 65. Kb5 {[%clk 0:00:02]}  Rd3 {[%clk 0:00:13]} 66. Nd5 {[%clk 0:00:02]}  Rd4 {[%clk 0:00:12]} 67. Kc6 {[%clk 0:00:03]}  Rxe4 {[%clk 0:00:09]} 68. Bxe4 {[%clk 0:00:02]}  Kxh5 {[%clk 0:00:10]} 69. Kxd6 {[%clk 0:00:03]}  Kg4 {[%clk 0:00:10]} 70. Ke5 {[%clk 0:00:04]}  Kg5 {[%clk 0:00:10]} 71. Nf4 {[%clk 0:00:04]}  Kg4 {[%clk 0:00:10]} 72. Ne6 {[%clk 0:00:05]}  Kh5 {[%clk 0:00:08]} 73. Kf5 {[%clk 0:00:05]}  Kh6 {[%clk 0:00:08]} 74. Kf6 {[%clk 0:00:06]}  Kh5 {[%clk 0:00:08]} 75. Kf5 {[%clk 0:00:06]}  Kh6 {[%clk 0:00:08]} 76. Ng5 {[%clk 0:00:06]}  Kg7 {[%clk 0:00:08]} 77. Bd5 {[%clk 0:00:06]}  Kh8 {[%clk 0:00:08]} 78. Ne6 {[%clk 0:00:05]}  Kh7 {[%clk 0:00:07]} 79. Kf6 {[%clk 0:00:05]}  Kh8 {[%clk 0:00:07]} 80. Ng5 {[%clk 0:00:05]} 1/2-1/2


[Site "https://www.chess.com"]

[Event "Titled Tuesday Blitz June 14 Late 2022"]
[White "Castellanos Hernandez, Emilio Au"]
[Black "Zhou, Liran"]
[WhiteFideId "5114179"]
[BlackFideId "30931967"]
[WhiteElo "2021"]
[BlackElo "2650"]
[Result "1/2-1/2"]
[Round "03"]
[TimeControl "180+1"]
[Date "2022.06.14"]
[WhiteClock "0:00:15"]
[BlackClock "0:00:16"]

1. d4 {[%clk 0:03:00]}  Nf6 {[%clk 0:02:58]} 2. Bf4 {[%clk 0:03:01]}  g6 {[%clk 0:02:54]} 3. Nc3 {[%clk 0:03:01]}  d5 {[%clk 0:02:54]} 4. e3 {[%clk 0:03:02]}  Bg7 {[%clk 0:02:54]} 5. h4 {[%clk 0:03:02]}  h5 {[%clk 0:02:53]} 6. Be2 {[%clk 0:02:59]}  c6 {[%clk 0:02:49]} 7. Nf3 {[%clk 0:03:00]}  Nbd7 {[%clk 0:02:46]} 8. Ne5 {[%clk 0:02:59]}  Nxe5 {[%clk 0:02:43]} 9. Bxe5 {[%clk 0:03:00]}  Bf5 {[%clk 0:02:34]} 10. f3 {[%clk 0:02:56]}  Qa5 {[%clk 0:02:17]} 11. a3 {[%clk 0:02:46]}  Rg8 {[%clk 0:01:59]} 12. Qd2 {[%clk 0:02:24]}  Qd8 {[%clk 0:01:52]} 13. O-O-O {[%clk 0:02:19]}  Qd7 {[%clk 0:01:50]} 14. Rdg1 {[%clk 0:02:14]}  O-O-O {[%clk 0:01:46]} 15. Kb1 {[%clk 0:02:13]}  Ne8 {[%clk 0:01:41]} 16. g4 {[%clk 0:02:12]}  hxg4 {[%clk 0:01:39]} 17. fxg4 {[%clk 0:02:08]}  Be6 {[%clk 0:01:37]} 18. Bf4 {[%clk 0:02:05]}  Nd6 {[%clk 0:01:35]} 19. Na4 {[%clk 0:01:48]}  b6 {[%clk 0:01:21]} 20. Qb4 {[%clk 0:01:49]}  Kb8 {[%clk 0:01:08]} 21. Nc5 {[%clk 0:01:08]}  Qc8 {[%clk 0:01:05]} 22. a4 {[%clk 0:01:08]}  Ka8 {[%clk 0:00:55]} 23. Nb3 {[%clk 0:01:09]}  Nc4 {[%clk 0:00:52]} 24. h5 {[%clk 0:01:07]}  gxh5 {[%clk 0:00:44]} 25. gxh5 {[%clk 0:01:08]}  Bf6 {[%clk 0:00:44]} 26. h6 {[%clk 0:01:08]}  Rxg1+ {[%clk 0:00:42]} 27. Rxg1 {[%clk 0:01:09]}  Rg8 {[%clk 0:00:42]} 28. Rxg8 {[%clk 0:01:04]}  Qxg8 {[%clk 0:00:42]} 29. a5 {[%clk 0:01:03]}  Qd8 {[%clk 0:00:22]} 30. axb6 {[%clk 0:01:00]}  axb6 {[%clk 0:00:20]} 31. Nd2 {[%clk 0:00:57]}  Nxd2+ {[%clk 0:00:19]} 32. Qxd2 {[%clk 0:00:57]}  Kb7 {[%clk 0:00:19]} 33. Bd3 {[%clk 0:00:58]}  Qg8 {[%clk 0:00:19]} 34. Qh2 {[%clk 0:00:56]}  Qh8 {[%clk 0:00:17]} 35. h7 {[%clk 0:00:54]}  c5 {[%clk 0:00:17]} 36. Be5 {[%clk 0:00:53]}  c4 {[%clk 0:00:17]} 37. Bxf6 {[%clk 0:00:52]}  exf6 {[%clk 0:00:17]} 38. Be2 {[%clk 0:00:48]}  Bf5 {[%clk 0:00:17]} 39. Qd6 {[%clk 0:00:46]}  Be4 {[%clk 0:00:15]} 40. Qd7+ {[%clk 0:00:45]}  Kb8 {[%clk 0:00:15]} 41. Qd6+ {[%clk 0:00:40]}  Kb7 {[%clk 0:00:15]} 42. Qd7+ {[%clk 0:00:40]}  Kb8 {[%clk 0:00:15]} 43. Qxf7 {[%clk 0:00:20]}  Qxh7 {[%clk 0:00:16]} 44. Qxf6 {[%clk 0:00:19]}  Bxc2+ {[%clk 0:00:15]} 45. Kc1 {[%clk 0:00:18]}  Be4 {[%clk 0:00:13]} 46. Qxb6+ {[%clk 0:00:18]}  Kc8 {[%clk 0:00:13]} 47. Qc6+ {[%clk 0:00:19]}  Kd8 {[%clk 0:00:14]} 48. Qd6+ {[%clk 0:00:19]}  Ke8 {[%clk 0:00:14]} 49. Qe6+ {[%clk 0:00:20]}  Kd8 {[%clk 0:00:14]} 50. Qd6+ {[%clk 0:00:20]}  Ke8 {[%clk 0:00:14]} 51. Qc6+ {[%clk 0:00:20]}  Kd8 {[%clk 0:00:14]} 52. Qa8+ {[%clk 0:00:17]}  Kc7 {[%clk 0:00:14]} 53. Qa7+ {[%clk 0:00:18]}  Kc6 {[%clk 0:00:14]} 54. Qxh7 {[%clk 0:00:15]}  Bxh7 {[%clk 0:00:14]} 55. Kd2 {[%clk 0:00:16]}  Be4 {[%clk 0:00:13]} 56. Kc3 {[%clk 0:00:16]}  Kb5 {[%clk 0:00:13]} 57. b3 {[%clk 0:00:16]}  Kc6 {[%clk 0:00:11]} 58. bxc4 {[%clk 0:00:17]}  dxc4 {[%clk 0:00:12]} 59. Bxc4 {[%clk 0:00:18]}  Kd6 {[%clk 0:00:13]} 60. Bd3 {[%clk 0:00:19]}  Bc6 {[%clk 0:00:13]} 61. e4 {[%clk 0:00:19]}  Be8 {[%clk 0:00:14]} 62. e5+ {[%clk 0:00:20]}  Kc7 {[%clk 0:00:14]} 63. Bc4 {[%clk 0:00:20]}  Bg6 {[%clk 0:00:14]} 64. d5 {[%clk 0:00:21]}  Bf5 {[%clk 0:00:15]} 65. Kd4 {[%clk 0:00:21]}  Kd7 {[%clk 0:00:15]} 66. e6+ {[%clk 0:00:21]}  Kd6 {[%clk 0:00:15]} 67. Bb3 {[%clk 0:00:20]}  Bg6 {[%clk 0:00:15]} 68. Ba2 {[%clk 0:00:19]}  Bh7 {[%clk 0:00:15]} 69. Bc4 {[%clk 0:00:20]}  Bg6 {[%clk 0:00:15]} 70. Bd3 {[%clk 0:00:20]}  Bh5 {[%clk 0:00:14]} 71. Be4 {[%clk 0:00:20]}  Bg4 {[%clk 0:00:15]} 72. e7 {[%clk 0:00:17]}  Kxe7 {[%clk 0:00:14]} 73. Ke5 {[%clk 0:00:17]}  Bc8 {[%clk 0:00:13]} 74. d6+ {[%clk 0:00:16]}  Kd8 {[%clk 0:00:12]} 75. Bd5 {[%clk 0:00:15]}  Bd7 {[%clk 0:00:13]} 76. Kf6 {[%clk 0:00:14]}  Be8 {[%clk 0:00:13]} 77. Be6 {[%clk 0:00:15]}  Bc6 {[%clk 0:00:13]} 78. Ke5 {[%clk 0:00:15]}  Bb7 {[%clk 0:00:12]} 79. Kd4 {[%clk 0:00:15]}  Bc6 {[%clk 0:00:12]} 80. Kc5 {[%clk 0:00:15]}  Be8 {[%clk 0:00:11]} 81. Bd5 {[%clk 0:00:15]}  Ba4 {[%clk 0:00:12]} 82. Bc6 {[%clk 0:00:14]}  Bd1 {[%clk 0:00:12]} 83. Be4 {[%clk 0:00:13]}  Bh5 {[%clk 0:00:13]} 84. Bc6 {[%clk 0:00:12]}  Be2 {[%clk 0:00:12]} 85. Kb6 {[%clk 0:00:12]}  Bh5 {[%clk 0:00:13]} 86. Ba4 {[%clk 0:00:12]}  Be2 {[%clk 0:00:13]} 87. Kc5 {[%clk 0:00:13]}  Bh5 {[%clk 0:00:14]} 88. Kd5 {[%clk 0:00:14]}  Bf3+ {[%clk 0:00:14]} 89. Ke6 {[%clk 0:00:14]}  Bh5 {[%clk 0:00:15]} 90. Ke5 {[%clk 0:00:15]}  Bg4 {[%clk 0:00:16]} 91. Bd1 {[%clk 0:00:15]}  Bxd1 {[%clk 0:00:16]} 92. d7 {[%clk 0:00:15]}  Kxd7 {[%clk 0:00:16]} 1/2-1/2


[Site "https://www.chess.com"]

[Event "Titled Tuesday Blitz June 14 Late 2022"]
[White "Chiu, Isaac"]
[Black "Voege, Tobias"]
[WhiteFideId "30900654"]
[BlackFideId "1270513"]
[WhiteElo "2117"]
[BlackElo "2379"]
[Result "1-0"]
[Round "03"]
[TimeControl "180+1"]
[Date "2022.06.14"]
[WhiteClock "0:00:05"]
[BlackClock "0:00:04"]

1. Nf3 {[%clk 0:02:59]}  c5 {[%clk 0:02:58]} 2. b3 {[%clk 0:03:00]}  d5 {[%clk 0:02:57]} 3. e3 {[%clk 0:03:00]}  Nf6 {[%clk 0:02:57]} 4. Bb2 {[%clk 0:02:59]}  Nc6 {[%clk 0:02:57]} 5. Bb5 {[%clk 0:02:57]}  Bg4 {[%clk 0:02:57]} 6. h3 {[%clk 0:02:57]}  Bh5 {[%clk 0:02:57]} 7. O-O {[%clk 0:02:56]}  e6 {[%clk 0:02:57]} 8. d3 {[%clk 0:02:53]}  Qc7 {[%clk 0:02:55]} 9. Nbd2 {[%clk 0:02:51]}  Bd6 {[%clk 0:02:54]} 10. Qe2 {[%clk 0:02:48]}  O-O {[%clk 0:02:51]} 11. Bxc6 {[%clk 0:02:47]}  Qxc6 {[%clk 0:02:48]} 12. e4 {[%clk 0:02:41]}  dxe4 {[%clk 0:02:43]} 13. dxe4 {[%clk 0:02:31]}  Bc7 {[%clk 0:02:35]} 14. Rfe1 {[%clk 0:02:16]}  Rfd8 {[%clk 0:02:30]} 15. Qe3 {[%clk 0:02:15]}  Bg6 {[%clk 0:02:26]} 16. Ne5 {[%clk 0:01:59]}  Bxe5 {[%clk 0:02:12]} 17. Bxe5 {[%clk 0:02:00]}  Nd7 {[%clk 0:02:12]} 18. Bb2 {[%clk 0:01:58]}  b5 {[%clk 0:02:10]} 19. a4 {[%clk 0:01:57]}  a6 {[%clk 0:02:09]} 20. h4 {[%clk 0:01:54]}  f6 {[%clk 0:01:56]} 21. Nf3 {[%clk 0:01:47]}  e5 {[%clk 0:01:54]} 22. Nh2 {[%clk 0:01:38]}  Nf8 {[%clk 0:01:51]} 23. Nf1 {[%clk 0:01:34]}  Ne6 {[%clk 0:01:46]} 24. Ng3 {[%clk 0:01:33]}  Nd4 {[%clk 0:01:42]} 25. Rec1 {[%clk 0:01:18]}  c4 {[%clk 0:01:35]} 26. h5 {[%clk 0:01:14]}  Bf7 {[%clk 0:01:31]} 27. axb5 {[%clk 0:01:13]}  axb5 {[%clk 0:01:21]} 28. Rxa8 {[%clk 0:01:14]}  Qxa8 {[%clk 0:01:21]} 29. bxc4 {[%clk 0:01:12]}  bxc4 {[%clk 0:01:13]} 30. Bxd4 {[%clk 0:01:12]}  exd4 {[%clk 0:01:12]} 31. Qd2 {[%clk 0:01:07]}  d3 {[%clk 0:01:07]} 32. cxd3 {[%clk 0:01:06]}  cxd3 {[%clk 0:01:07]} 33. h6 {[%clk 0:01:05]}  Qa3 {[%clk 0:00:48]} 34. hxg7 {[%clk 0:00:49]}  Bb3 {[%clk 0:00:25]} 35. Rc3 {[%clk 0:00:20]}  Qa1+ {[%clk 0:00:18]} 36. Kh2 {[%clk 0:00:20]}  Qa2 {[%clk 0:00:13]} 37. Qh6 {[%clk 0:00:10]}  d2 {[%clk 0:00:10]} 38. Nh5 {[%clk 0:00:11]}  Qa6 {[%clk 0:00:08]} 39. Rf3 {[%clk 0:00:05]}  d1=Q {[%clk 0:00:07]} 40. Nxf6+ {[%clk 0:00:06]}  Qxf6 {[%clk 0:00:07]} 41. Rxf6 {[%clk 0:00:07]}  Bf7 {[%clk 0:00:03]} 42. e5 {[%clk 0:00:06]}  Qd7 {[%clk 0:00:02]} 43. e6 {[%clk 0:00:06]}  Qd6+ {[%clk 0:00:02]} 44. g3 {[%clk 0:00:07]}  Bg6 {[%clk 0:00:03]} 45. f4 {[%clk 0:00:04]}  Qe7 {[%clk 0:00:03]} 46. Qg5 {[%clk 0:00:04]}  Qxg7 {[%clk 0:00:03]} 47. Rxg6 {[%clk 0:00:05]}  hxg6 {[%clk 0:00:03]} 48. Qxd8+ {[%clk 0:00:05]}  Kh7 {[%clk 0:00:04]} 49. Qd7 {[%clk 0:00:05]} 1-0


[Site "https://www.chess.com"]